[Event "*** Titled Tuesday Blitz"]
[Site "Chess.com"]
[Date "2019.08.06"]
[Round "2"]
[White "Micki-taryan"]
[Black "BlackBoarder"]
[Result "1-0"]
[WhiteElo "2957"]
[BlackElo "2657"]
[TimeControl "180+2"]
[EndTime "13:21:26 PDT"]
[Termination "Micki-taryan won by resignation"]

1. d4 {[%clk 0:03:01.9]} 1... Nf6 {[%clk 0:03:00.7]} 2. Nf3 {[%clk 0:03:02.7]}
2... e6 {[%clk 0:03:00.4]} 3. c4 {[%clk 0:03:03]} 3... d5 {[%clk 0:03:00.8]} 4.
Nc3 {[%clk 0:03:04.1]} 4... Bb4 {[%clk 0:03:01.9]} 5. Bg5 {[%clk 0:03:04.4]}
5... h6 {[%clk 0:03:02.9]} 6. Bxf6 {[%clk 0:03:05.9]} 6... Qxf6 {[%clk
0:03:04.8]} 7. Qa4+ {[%clk 0:03:07.1]} 7... Nc6 {[%clk 0:03:05.9]} 8. e3 {[%clk
0:03:08.7]} 8... O-O {[%clk 0:03:05]} 9. Be2 {[%clk 0:03:09.9]} 9... dxc4 {[%clk
0:03:02.1]} 10. Bxc4 {[%clk 0:03:08.7]} 10... e5 {[%clk 0:02:58.7]} 11. O-O
{[%clk 0:02:13.7]} 11... exd4 {[%clk 0:02:26.1]} 12. Nd5 {[%clk 0:02:10.1]}
12... Qd6 {[%clk 0:02:26.6]} 13. Nxb4 {[%clk 0:01:59.6]} 13... Nxb4 {[%clk
0:02:07]} 14. Rad1 {[%clk 0:01:41.9]} 14... Bd7 {[%clk 0:01:43.1]} 15. Qb3
{[%clk 0:01:37.4]} 15... Qb6 {[%clk 0:01:10.7]} 16. Rxd4 {[%clk 0:01:33.9]}
16... Rad8 {[%clk 0:00:38.1]} 17. Bxf7+ {[%clk 0:01:06.4]} 17... Rxf7 {[%clk
0:00:33.7]} 18. Ne5 {[%clk 0:01:05.9]} 18... Qf6 {[%clk 0:00:10.1]} 19. Qxf7+
{[%clk 0:01:01.2]} 19... Qxf7 {[%clk 0:00:12]} 20. Nxf7 {[%clk 0:01:03]} 20...
Kxf7 {[%clk 0:00:13.7]} 21. Rxb4 {[%clk 0:01:04.6]} 21... Bc6 {[%clk 0:00:14.4]}
22. Rd4 {[%clk 0:01:05.4]} 22... Rxd4 {[%clk 0:00:13.3]} 23. exd4 {[%clk
0:01:07.3]} 23... Ke6 {[%clk 0:00:15.2]} 24. Re1+ {[%clk 0:01:07.6]} 24... Kd5
{[%clk 0:00:16.5]} 25. Re7 {[%clk 0:01:09.2]} 25... Kxd4 {[%clk 0:00:15.8]} 26.
Rxg7 {[%clk 0:01:10.1]} 26... Kd3 {[%clk 0:00:16.2]} 27. Rxc7 {[%clk 0:01:10.8]}
27... Kc2 {[%clk 0:00:17.4]} 28. b4 {[%clk 0:01:11.6]} 28... Kb2 {[%clk
0:00:17.9]} 29. b5 {[%clk 0:01:13.2]} 29... Bd5 {[%clk 0:00:16]} 30. a4 {[%clk
0:01:14.6]} 30... Kb3 {[%clk 0:00:17]} 31. a5 {[%clk 0:01:16.2]} 31... Kb4
{[%clk 0:00:17.7]} 32. a6 {[%clk 0:01:17.9]} 32... b6 {[%clk 0:00:09.8]} 33. Rd7
{[%clk 0:01:18.3]} 1-0

[Event "*** Titled Tuesday Blitz"]
[Site "Chess.com"]
[Date "2019.08.06"]
[Round "2"]
[White "iturrizaga"]
[Black "oskariot"]
[Result "0-1"]
[WhiteElo "2932"]
[BlackElo "2678"]
[TimeControl "180+2"]
[EndTime "13:21:28 PDT"]
[Termination "oskariot won by checkmate"]

1. c4 {[%clk 0:03:01.9]} 1... c5 {[%clk 0:03:00.5]} 2. g3 {[%clk 0:03:02.8]}
2... g6 {[%clk 0:03:01.9]} 3. Bg2 {[%clk 0:03:04.7]} 3... Bg7 {[%clk 0:03:03.5]}
4. Nc3 {[%clk 0:03:06.2]} 4... Nc6 {[%clk 0:03:05.1]} 5. a3 {[%clk 0:03:07.6]}
5... Bxc3 {[%clk 0:02:55.1]} 6. bxc3 {[%clk 0:03:07.5]} 6... d6 {[%clk
0:02:52.3]} 7. d3 {[%clk 0:03:08.8]} 7... Qd7 {[%clk 0:02:52.3]} 8. h4 {[%clk
0:03:09.3]} 8... h5 {[%clk 0:02:52.5]} 9. e4 {[%clk 0:03:09.8]} 9... Nf6 {[%clk
0:02:46.4]} 10. Bg5 {[%clk 0:03:10.2]} 10... b6 {[%clk 0:02:38]} 11. Bxf6 {[%clk
0:02:54.4]} 11... exf6 {[%clk 0:02:38.9]} 12. Qf3 {[%clk 0:02:56]} 12... Qe7
{[%clk 0:02:37.6]} 13. e5 {[%clk 0:02:44.8]} 13... Nxe5 {[%clk 0:01:25.6]} 14.
Qxa8 {[%clk 0:02:37.6]} 14... Nf3+ {[%clk 0:01:15.6]} 15. Kd1 {[%clk 0:02:27.4]}
15... Qe1+ {[%clk 0:01:15.8]} 16. Kc2 {[%clk 0:02:27.9]} 16... Qxf2+ {[%clk
0:01:14.2]} 17. Kb3 {[%clk 0:01:54.1]} 17... Nd2+ {[%clk 0:01:14.2]} 18. Ka4
{[%clk 0:01:54.3]} 18... O-O {[%clk 0:01:15.6]} 19. Bc6 {[%clk 0:01:43.3]} 19...
Nxc4 {[%clk 0:00:35.6]} 20. Rc1 {[%clk 0:00:52.2]} 20... Qa2 {[%clk 0:00:29.1]}
21. Qxc8 {[%clk 0:00:23.9]} 21... Qxa3+ {[%clk 0:00:24.5]} 22. Kb5 {[%clk
0:00:24.6]} 22... a6+ {[%clk 0:00:15.7]} 23. Kxc4 {[%clk 0:00:21.9]} 23... Qa2#
{[%clk 0:00:16.3]} 0-1

[Event "*** Titled Tuesday Blitz"]
[Site "Chess.com"]
[Date "2019.08.06"]
[Round "2"]
[White "medalja"]
[Black "cancrushyou"]
[Result "1-0"]
[WhiteElo "2360"]
[BlackElo "2494"]
[TimeControl "180+2"]
[EndTime "13:21:42 PDT"]
[Termination "medalja won by resignation"]

1. d4 {[%clk 0:03:01.9]} 1... Nf6 {[%clk 0:03:00.7]} 2. c4 {[%clk 0:03:02.6]}
2... e6 {[%clk 0:03:01.8]} 3. Nf3 {[%clk 0:03:01.4]} 3... d5 {[%clk 0:03:02.8]}
4. Nc3 {[%clk 0:02:59.8]} 4... Bb4 {[%clk 0:03:02.6]} 5. Qa4+ {[%clk 0:02:58.7]}
5... Nc6 {[%clk 0:03:03.5]} 6. Bd2 {[%clk 0:02:53.2]} 6... O-O {[%clk
0:03:02.8]} 7. Qc2 {[%clk 0:02:51]} 7... dxc4 {[%clk 0:02:57.6]} 8. e3 {[%clk
0:02:51]} 8... Bd6 {[%clk 0:02:51.6]} 9. a3 {[%clk 0:02:51.3]} 9... e5 {[%clk
0:02:49.6]} 10. dxe5 {[%clk 0:02:38]} 10... Nxe5 {[%clk 0:02:51.5]} 11. Nxe5
{[%clk 0:02:39.3]} 11... Bxe5 {[%clk 0:02:52.5]} 12. Bxc4 {[%clk 0:02:40.7]}
12... Re8 {[%clk 0:02:46.9]} 13. O-O-O {[%clk 0:02:38.6]} 13... Be6 {[%clk
0:02:44.1]} 14. Bd3 {[%clk 0:02:19.5]} 14... h6 {[%clk 0:02:02]} 15. f4 {[%clk
0:02:17]} 15... Bxc3 {[%clk 0:02:01]} 16. Bxc3 {[%clk 0:02:18.9]} 16... Qe7
{[%clk 0:01:43.8]} 17. e4 {[%clk 0:02:11.7]} 17... Bg4 {[%clk 0:01:43.3]} 18.
Rde1 {[%clk 0:02:09.6]} 18... Rad8 {[%clk 0:01:43.7]} 19. h3 {[%clk 0:02:10.4]}
19... Bd7 {[%clk 0:01:38.8]} 20. Bb4 {[%clk 0:01:40.2]} 20... Qe6 {[%clk
0:01:31]} 21. Bc4 {[%clk 0:01:28]} 21... Qc6 {[%clk 0:01:18.5]} 22. e5 {[%clk
0:01:19.8]} 22... Nd5 {[%clk 0:01:12.4]} 23. Bd2 {[%clk 0:00:53.2]} 23... Bf5
{[%clk 0:01:13.1]} 24. Qxf5 {[%clk 0:00:49.1]} 24... Qxc4+ {[%clk 0:01:14]} 25.
Qc2 {[%clk 0:00:50.7]} 25... Nb6 {[%clk 0:00:58.8]} 26. Re4 {[%clk 0:00:41.3]}
26... Qxc2+ {[%clk 0:00:52.8]} 27. Kxc2 {[%clk 0:00:43.2]} 27... f6 {[%clk
0:00:47.4]} 28. Rhe1 {[%clk 0:00:41.5]} 28... fxe5 {[%clk 0:00:46.8]} 29. Rxe5
{[%clk 0:00:35.9]} 29... Rxe5 {[%clk 0:00:47.7]} 30. Rxe5 {[%clk 0:00:37.8]}
30... Rxd2+ {[%clk 0:00:38.8]} 31. Kxd2 {[%clk 0:00:33.3]} 31... Na8 {[%clk
0:00:40.7]} 32. Re8+ {[%clk 0:00:32.7]} 1-0

[Event "*** Titled Tuesday Blitz"]
[Site "Chess.com"]
[Date "2019.08.06"]
[Round "2"]
[White "Quiet_Desperation"]
[Black "edgarrodrigues"]
[Result "1/2-1/2"]
[WhiteElo "2498"]
[BlackElo "2432"]
[TimeControl "180+2"]
[EndTime "13:21:42 PDT"]
[Termination "Game drawn by agreement"]

1. e4 {[%clk 0:03:01.9]} 1... e6 {[%clk 0:03:00.8]} 2. d4 {[%clk 0:03:02.6]}
2... d5 {[%clk 0:03:01.6]} 3. Nc3 {[%clk 0:03:04.1]} 3... Nf6 {[%clk 0:03:02.3]}
4. e5 {[%clk 0:03:05.1]} 4... Nfd7 {[%clk 0:03:02.8]} 5. f4 {[%clk 0:03:06.7]}
5... c5 {[%clk 0:03:04.3]} 6. Nf3 {[%clk 0:03:07.9]} 6... Nc6 {[%clk 0:03:05.9]}
7. Be3 {[%clk 0:03:09.2]} 7... a6 {[%clk 0:03:07.2]} 8. Qd2 {[%clk 0:03:09.7]}
8... b5 {[%clk 0:03:08.7]} 9. Be2 {[%clk 0:03:09.7]} 9... b4 {[%clk 0:03:03.8]}
10. Nd1 {[%clk 0:03:10.6]} 10... Qb6 {[%clk 0:02:56.6]} 11. c3 {[%clk
0:03:10.7]} 11... f6 {[%clk 0:02:54.5]} 12. O-O {[%clk 0:03:04.2]} 12... Be7
{[%clk 0:02:51.1]} 13. c4 {[%clk 0:02:54.1]} 13... cxd4 {[%clk 0:02:48.8]} 14.
Nxd4 {[%clk 0:02:55.3]} 14... Nxd4 {[%clk 0:02:47]} 15. Bxd4 {[%clk 0:02:56.6]}
15... Bc5 {[%clk 0:02:47.8]} 16. Bxc5 {[%clk 0:02:57.7]} 16... Nxc5 {[%clk
0:02:49.7]} 17. Kh1 {[%clk 0:02:56.1]} 17... Ne4 {[%clk 0:02:47.9]} 18. Qe1
{[%clk 0:02:51.8]} 18... f5 {[%clk 0:02:28]} 19. cxd5 {[%clk 0:02:40.9]} 19...
exd5 {[%clk 0:02:29.9]} 20. Bf3 {[%clk 0:02:26.6]} 20... O-O {[%clk 0:02:27]}
21. Ne3 {[%clk 0:02:23.9]} 21... Be6 {[%clk 0:02:22.8]} 22. Rd1 {[%clk
0:02:22.7]} 22... d4 {[%clk 0:02:18]} 23. Nxf5 {[%clk 0:02:19]} 23... Bxf5
{[%clk 0:02:04.9]} 24. Bxe4 {[%clk 0:02:18.9]} 24... Rad8 {[%clk 0:01:50.5]} 25.
Bxf5 {[%clk 0:02:18.2]} 25... Rxf5 {[%clk 0:01:51.1]} 26. Qe4 {[%clk 0:02:18.8]}
26... Rff8 {[%clk 0:01:33]} 27. e6 {[%clk 0:02:09.7]} 27... Rfe8 {[%clk
0:01:32.5]} 28. f5 {[%clk 0:02:09.9]} 28... Qb5 {[%clk 0:01:32.7]} 29. Rf3
{[%clk 0:01:54.9]} 29... Rd5 {[%clk 0:01:24.1]} 30. h3 {[%clk 0:01:31.1]} 30...
Re5 {[%clk 0:01:17.2]} 31. Qxd4 {[%clk 0:01:26.2]} 31... Rxf5 {[%clk 0:01:17.4]}
32. Rxf5 {[%clk 0:01:01.2]} 32... Qxf5 {[%clk 0:01:19.3]} 33. Qxb4 {[%clk
0:01:02.2]} 33... Qxe6 {[%clk 0:01:14.7]} 34. Rd6 {[%clk 0:00:55.1]} 34... Qxa2
{[%clk 0:01:10]} 35. Rd7 {[%clk 0:00:46.3]} 35... Qe6 {[%clk 0:01:02.6]} 36. Qd2
{[%clk 0:00:31.8]} 36... Qe1+ {[%clk 0:01:00.7]} 37. Kh2 {[%clk 0:00:32.5]}
1/2-1/2

[Event "*** Titled Tuesday Blitz"]
[Site "Chess.com"]
[Date "2019.08.06"]
[Round "2"]
[White "Aknok"]
[Black "Olga_Girya"]
[Result "0-1"]
[WhiteElo "2424"]
[BlackElo "2502"]
[TimeControl "180+2"]
[EndTime "13:21:43 PDT"]
[Termination "Olga_Girya won on time"]

1. d4 {[%clk 0:03:01.9]} 1... Nf6 {[%clk 0:02:59.4]} 2. c4 {[%clk 0:03:02.9]}
2... e6 {[%clk 0:03:00.8]} 3. Nf3 {[%clk 0:03:03.5]} 3... d6 {[%clk 0:03:01.7]}
4. Nc3 {[%clk 0:03:03.4]} 4... Be7 {[%clk 0:03:03]} 5. e4 {[%clk 0:03:04.1]}
5... O-O {[%clk 0:03:03.8]} 6. h3 {[%clk 0:03:04.4]} 6... b6 {[%clk 0:03:05.1]}
7. Bd3 {[%clk 0:03:04.2]} 7... Bb7 {[%clk 0:03:05.7]} 8. Qe2 {[%clk 0:03:05.5]}
8... e5 {[%clk 0:02:52.1]} 9. dxe5 {[%clk 0:02:58.6]} 9... dxe5 {[%clk
0:02:53.1]} 10. Nxe5 {[%clk 0:03:00.5]} 10... Bb4 {[%clk 0:02:53.7]} 11. Bd2
{[%clk 0:02:29.5]} 11... Re8 {[%clk 0:02:50]} 12. f4 {[%clk 0:02:29.1]} 12...
Nbd7 {[%clk 0:02:16.7]} 13. Nxd7 {[%clk 0:02:23.6]} 13... Qxd7 {[%clk
0:02:04.1]} 14. O-O-O {[%clk 0:02:22]} 14... Rad8 {[%clk 0:01:40.5]} 15. Bc2
{[%clk 0:02:21.3]} 15... Qe6 {[%clk 0:01:18.8]} 16. e5 {[%clk 0:02:07.9]} 16...
Nd7 {[%clk 0:01:07.6]} 17. Nd5 {[%clk 0:01:53.7]} 17... Bxd2+ {[%clk 0:01:07.1]}
18. Rxd2 {[%clk 0:01:50.3]} 18... Qc6 {[%clk 0:00:47.9]} 19. Rhd1 {[%clk
0:01:33.9]} 19... Qc5 {[%clk 0:00:33.2]} 20. Nf6+ {[%clk 0:00:46.5]} 20... gxf6
{[%clk 0:00:28.5]} 21. Rxd7 {[%clk 0:00:38.8]} 21... Rxd7 {[%clk 0:00:20.4]} 22.
Rxd7 {[%clk 0:00:30.3]} 22... fxe5 {[%clk 0:00:21.1]} 23. Qg4+ {[%clk 0:00:20]}
23... Kh8 {[%clk 0:00:21.9]} 0-1

[Event "*** Titled Tuesday Blitz"]
[Site "Chess.com"]
[Date "2019.08.06"]
[Round "2"]
[White "pandamaster3000"]
[Black "DACF2905"]
[Result "1-0"]
[WhiteElo "2317"]
[BlackElo "2210"]
[TimeControl "180+2"]
[EndTime "13:21:51 PDT"]
[Termination "pandamaster3000 won by checkmate"]

1. e4 {[%clk 0:03:01.9]} 1... c5 {[%clk 0:02:58.8]} 2. Nf3 {[%clk 0:03:02.5]}
2... e6 {[%clk 0:02:59.5]} 3. d3 {[%clk 0:03:02.6]} 3... Nc6 {[%clk 0:02:59.7]}
4. g3 {[%clk 0:03:03.2]} 4... d6 {[%clk 0:02:58.2]} 5. Bg2 {[%clk 0:03:03.9]}
5... Nf6 {[%clk 0:02:59]} 6. O-O {[%clk 0:03:05.5]} 6... Be7 {[%clk 0:03:00.1]}
7. Re1 {[%clk 0:03:04.4]} 7... Qc7 {[%clk 0:02:59]} 8. c3 {[%clk 0:02:47.2]}
8... b5 {[%clk 0:02:52.9]} 9. d4 {[%clk 0:02:46.8]} 9... Bb7 {[%clk 0:02:50.7]}
10. e5 {[%clk 0:02:15.2]} 10... dxe5 {[%clk 0:02:49.1]} 11. dxe5 {[%clk
0:02:17.1]} 11... Nd7 {[%clk 0:02:49.6]} 12. Qe2 {[%clk 0:02:15.8]} 12... a6
{[%clk 0:02:40.8]} 13. h4 {[%clk 0:02:16.8]} 13... h6 {[%clk 0:02:38.5]} 14. h5
{[%clk 0:02:10.2]} 14... O-O-O {[%clk 0:02:37.6]} 15. Bf4 {[%clk 0:02:07]} 15...
Nb6 {[%clk 0:02:27.6]} 16. Nbd2 {[%clk 0:02:06.3]} 16... Nd5 {[%clk 0:02:24.6]}
17. a4 {[%clk 0:01:32.9]} 17... Nxf4 {[%clk 0:02:22.1]} 18. gxf4 {[%clk
0:01:34.8]} 18... g6 {[%clk 0:02:21.1]} 19. hxg6 {[%clk 0:01:33.9]} 19... fxg6
{[%clk 0:02:18]} 20. axb5 {[%clk 0:01:34.9]} 20... axb5 {[%clk 0:02:18.7]} 21.
Qxb5 {[%clk 0:01:34.6]} 21... g5 {[%clk 0:02:14.4]} 22. fxg5 {[%clk 0:01:06.7]}
22... hxg5 {[%clk 0:02:14.6]} 23. Nc4 {[%clk 0:01:01.5]} 23... g4 {[%clk
0:01:46.6]} 24. Nh2 {[%clk 0:01:02.1]} 24... Rdg8 {[%clk 0:01:29.6]} 25. Red1
{[%clk 0:00:46.8]} 25... g3 {[%clk 0:00:29.6]} 26. Nb6+ {[%clk 0:00:44.3]} 26...
Kb8 {[%clk 0:00:29]} 27. Rd7 {[%clk 0:00:36.3]} 27... gxh2+ {[%clk 0:00:17.5]}
28. Kh1 {[%clk 0:00:36.5]} 28... Qxe5 {[%clk 0:00:18.7]} 29. Rxb7+ {[%clk
0:00:35.7]} 29... Kxb7 {[%clk 0:00:17.3]} 30. Qxc6+ {[%clk 0:00:36.6]} 30... Kb8
{[%clk 0:00:18]} 31. Ra8# {[%clk 0:00:38]} 1-0

[Event "*** Titled Tuesday Blitz"]
[Site "Chess.com"]
[Date "2019.08.06"]
[Round "2"]
[White "KuzubovYuriy"]
[Black "wonderfultime"]
[Result "0-1"]
[WhiteElo "2619"]
[BlackElo "2885"]
[TimeControl "180+2"]
[EndTime "13:21:54 PDT"]
[Termination "wonderfultime won by resignation"]

1. d4 {[%clk 0:03:01.9]} 1... d5 {[%clk 0:02:55.1]} 2. c4 {[%clk 0:03:02.7]}
2... c6 {[%clk 0:02:56.1]} 3. e3 {[%clk 0:03:04]} 3... Nf6 {[%clk 0:02:57.2]} 4.
Nc3 {[%clk 0:03:05]} 4... a6 {[%clk 0:02:58.6]} 5. b3 {[%clk 0:03:02.1]} 5...
Bf5 {[%clk 0:02:54.1]} 6. Nge2 {[%clk 0:03:03.1]} 6... e6 {[%clk 0:02:53.5]} 7.
Ng3 {[%clk 0:03:03.6]} 7... Bg6 {[%clk 0:02:55]} 8. Bd3 {[%clk 0:03:04.7]} 8...
Nbd7 {[%clk 0:02:47]} 9. O-O {[%clk 0:03:04.4]} 9... Bd6 {[%clk 0:02:47.3]} 10.
Bb2 {[%clk 0:02:54.8]} 10... O-O {[%clk 0:02:46.7]} 11. Qe2 {[%clk 0:02:54]}
11... b5 {[%clk 0:02:40.4]} 12. Bxg6 {[%clk 0:02:49.6]} 12... hxg6 {[%clk
0:02:40]} 13. c5 {[%clk 0:02:47.4]} 13... Bxg3 {[%clk 0:02:02.6]} 14. hxg3
{[%clk 0:02:49.3]} 14... Ne4 {[%clk 0:01:57.4]} 15. Nxe4 {[%clk 0:02:41.4]}
15... dxe4 {[%clk 0:01:59.3]} 16. f3 {[%clk 0:02:42.4]} 16... Nf6 {[%clk
0:01:35.3]} 17. g4 {[%clk 0:02:42.8]} 17... g5 {[%clk 0:01:34]} 18. Kf2 {[%clk
0:02:30.2]} 18... exf3 {[%clk 0:01:27.3]} 19. gxf3 {[%clk 0:02:30.2]} 19... Nd5
{[%clk 0:01:29]} 20. e4 {[%clk 0:02:20.5]} 20... Nf4 {[%clk 0:01:29.8]} 21. Qe3
{[%clk 0:02:19.7]} 21... f5 {[%clk 0:01:30.9]} 22. d5 {[%clk 0:01:42.7]} 22...
fxg4 {[%clk 0:01:05.8]} 23. d6 {[%clk 0:01:40.2]} 23... gxf3 {[%clk 0:01:07.1]}
24. Rh1 {[%clk 0:01:36.5]} 24... g4 {[%clk 0:01:00]} 25. Rag1 {[%clk 0:01:02.4]}
25... Qg5 {[%clk 0:00:47.3]} 26. Rg3 {[%clk 0:00:50.1]} 26... Ra7 {[%clk
0:00:42.7]} 27. Kf1 {[%clk 0:00:44.7]} 27... Nh5 {[%clk 0:00:32.3]} 28. Qxg5
{[%clk 0:00:19.2]} 28... Nxg3+ {[%clk 0:00:33.5]} 29. Ke1 {[%clk 0:00:12.4]}
29... f2+ {[%clk 0:00:34.8]} 30. Kd2 {[%clk 0:00:11.7]} 30... Nxe4+ {[%clk
0:00:36.1]} 31. Ke2 {[%clk 0:00:09.3]} 31... Nxg5 {[%clk 0:00:38]} 0-1

[Event "*** Titled Tuesday Blitz"]
[Site "Chess.com"]
[Date "2019.08.06"]
[Round "2"]
[White "TregubovP"]
[Black "olksuna"]
[Result "0-1"]
[WhiteElo "2511"]
[BlackElo "2549"]
[TimeControl "180+2"]
[EndTime "13:22:03 PDT"]
[Termination "olksuna won by resignation"]

1. e4 {[%clk 0:03:01.9]} 1... c5 {[%clk 0:02:59.6]} 2. c3 {[%clk 0:03:02.5]}
2... Nf6 {[%clk 0:02:59.8]} 3. e5 {[%clk 0:03:03.1]} 3... Nd5 {[%clk 0:02:59.1]}
4. d4 {[%clk 0:03:04.3]} 4... cxd4 {[%clk 0:02:59.2]} 5. cxd4 {[%clk 0:03:05.3]}
5... Nc6 {[%clk 0:02:59.7]} 6. Nf3 {[%clk 0:03:06.2]} 6... d6 {[%clk 0:03:00.8]}
7. Bc4 {[%clk 0:03:05.7]} 7... dxe5 {[%clk 0:02:59.2]} 8. Bxd5 {[%clk
0:03:06.6]} 8... Qxd5 {[%clk 0:02:56.3]} 9. Nc3 {[%clk 0:03:07.4]} 9... Qd8
{[%clk 0:02:49.7]} 10. d5 {[%clk 0:03:07.9]} 10... Nd4 {[%clk 0:02:32.6]} 11.
Nxe5 {[%clk 0:03:08.7]} 11... Nf5 {[%clk 0:02:33.5]} 12. O-O {[%clk 0:02:38.4]}
12... g6 {[%clk 0:02:34.3]} 13. Bf4 {[%clk 0:02:15.5]} 13... Bg7 {[%clk
0:02:32.4]} 14. Re1 {[%clk 0:01:48.1]} 14... O-O {[%clk 0:02:31.7]} 15. Qd2
{[%clk 0:01:47.9]} 15... Bd7 {[%clk 0:02:26.7]} 16. Rad1 {[%clk 0:01:47.9]}
16... Rc8 {[%clk 0:02:26]} 17. Nf3 {[%clk 0:01:23.9]} 17... Re8 {[%clk
0:02:10.8]} 18. h3 {[%clk 0:01:23.9]} 18... Qa5 {[%clk 0:02:06.5]} 19. Be5
{[%clk 0:01:19.7]} 19... Bh6 {[%clk 0:02:01.6]} 20. Qd3 {[%clk 0:01:17.2]} 20...
Nd6 {[%clk 0:01:49.8]} 21. g4 {[%clk 0:01:00.9]} 21... Nc4 {[%clk 0:01:44]} 22.
Re2 {[%clk 0:00:57.4]} 22... b5 {[%clk 0:01:22]} 23. a3 {[%clk 0:00:48]} 23...
b4 {[%clk 0:01:18.1]} 24. axb4 {[%clk 0:00:48.6]} 24... Qxb4 {[%clk 0:01:20]}
25. Re4 {[%clk 0:00:43.7]} 25... Qb3 {[%clk 0:00:53.5]} 26. Qe2 {[%clk
0:00:38.5]} 26... Qxb2 {[%clk 0:00:43.3]} 27. Qxb2 {[%clk 0:00:35.5]} 27... Nxb2
{[%clk 0:00:44.4]} 28. Ra1 {[%clk 0:00:36.9]} 28... Nc4 {[%clk 0:00:36.6]} 29.
Rxa7 {[%clk 0:00:35]} 29... Bxg4 {[%clk 0:00:30.1]} 30. hxg4 {[%clk 0:00:30]}
30... Nxe5 {[%clk 0:00:31]} 31. Nxe5 {[%clk 0:00:30.7]} 31... Rxc3 {[%clk
0:00:30.6]} 32. Nc6 {[%clk 0:00:31.8]} 32... e6 {[%clk 0:00:30.2]} 33. d6 {[%clk
0:00:30.3]} 33... Rxc6 {[%clk 0:00:29.9]} 34. d7 {[%clk 0:00:31.3]} 34... Rd8
{[%clk 0:00:30.7]} 0-1

[Event "*** Titled Tuesday Blitz"]
[Site "Chess.com"]
[Date "2019.08.06"]
[Round "2"]
[White "HanSchut"]
[Black "Nancy11111"]
[Result "1-0"]
[WhiteElo "2215"]
[BlackElo "2305"]
[TimeControl "180+2"]
[EndTime "13:22:07 PDT"]
[Termination "HanSchut won on time"]

1. e4 {[%clk 0:03:01.9]} 1... c5 {[%clk 0:02:58.8]} 2. Nf3 {[%clk 0:03:02.2]}
2... d6 {[%clk 0:02:58.9]} 3. d4 {[%clk 0:03:03.1]} 3... cxd4 {[%clk 0:02:59.6]}
4. Nxd4 {[%clk 0:03:05]} 4... Nf6 {[%clk 0:03:00.1]} 5. f3 {[%clk 0:03:06.6]}
5... a6 {[%clk 0:02:59.8]} 6. c4 {[%clk 0:03:07.4]} 6... e5 {[%clk 0:02:59.8]}
7. Nc2 {[%clk 0:03:08]} 7... Be6 {[%clk 0:02:57.9]} 8. Nc3 {[%clk 0:03:08.6]}
8... Nc6 {[%clk 0:02:56.5]} 9. Be3 {[%clk 0:03:09]} 9... Be7 {[%clk 0:02:38]}
10. Qd2 {[%clk 0:03:07.3]} 10... Qc7 {[%clk 0:02:31.7]} 11. Rc1 {[%clk
0:03:05.3]} 11... O-O {[%clk 0:02:31]} 12. Be2 {[%clk 0:02:49.3]} 12... Rab8
{[%clk 0:02:25.4]} 13. O-O {[%clk 0:02:47.9]} 13... Nd7 {[%clk 0:02:05.9]} 14.
Rfd1 {[%clk 0:02:46.4]} 14... Nc5 {[%clk 0:01:40.9]} 15. b4 {[%clk 0:02:31.5]}
15... Nd7 {[%clk 0:01:33.3]} 16. Bf1 {[%clk 0:02:14]} 16... b6 {[%clk
0:01:23.6]} 17. Nd5 {[%clk 0:02:11.9]} 17... Bxd5 {[%clk 0:01:17]} 18. cxd5
{[%clk 0:02:09.9]} 18... Nd8 {[%clk 0:01:11.4]} 19. Nd4 {[%clk 0:02:01.1]} 19...
Qa7 {[%clk 0:01:04.6]} 20. Nf5 {[%clk 0:01:56.8]} 20... Nf6 {[%clk 0:01:00.7]}
21. Bxa6 {[%clk 0:01:43.1]} 21... Re8 {[%clk 0:00:52.1]} 22. Bb5 {[%clk
0:01:42.8]} 22... Rf8 {[%clk 0:00:50.6]} 23. a4 {[%clk 0:01:43.3]} 23... g6
{[%clk 0:00:49.2]} 24. Nh6+ {[%clk 0:01:37.9]} 24... Kg7 {[%clk 0:00:49.5]} 25.
a5 {[%clk 0:01:36.2]} 25... Ne8 {[%clk 0:00:31.4]} 26. axb6 {[%clk 0:01:31.2]}
26... Rxb6 {[%clk 0:00:30.4]} 27. Bxe8 {[%clk 0:01:27.7]} 27... Rxe8 {[%clk
0:00:30.3]} 28. Qf2 {[%clk 0:01:23.7]} 28... Qb7 {[%clk 0:00:27.7]} 29. Bxb6
{[%clk 0:01:18.5]} 29... Kxh6 {[%clk 0:00:28.5]} 30. Rc7 {[%clk 0:01:13.5]}
30... Qa6 {[%clk 0:00:25.7]} 31. Rxe7 {[%clk 0:01:08.4]} 31... Rxe7 {[%clk
0:00:24.2]} 32. Be3+ {[%clk 0:01:06.4]} 32... Kg7 {[%clk 0:00:23]} 33. Qh4
{[%clk 0:01:07.9]} 33... Qe2 {[%clk 0:00:14.1]} 34. Bh6+ {[%clk 0:01:00.2]}
34... Kg8 {[%clk 0:00:13.1]} 35. Rf1 {[%clk 0:00:53.3]} 35... f6 {[%clk
0:00:02.3]} 36. Qxf6 {[%clk 0:00:51]} 1-0